bitfinex-derivatives/quotes_BTCF0:USTF0_20260221
["timestamp","ask_amount","ask_price","bid_price","bid_amount"]
[1771648209684,0.014762,67765.0,67757.0,0.014764]
[1771648209883,0.20697646,67764.0,67759.0,0.014764]
[1771648210181,0.20697646,67763.0,67759.0,0.014764]
[1771648210383,0.029524,67765.0,67759.0,0.014764]
[1771648211183,0.014763,67764.0,67759.0,0.014764]
[1771648211383,0.014762,67765.0,67760.0,0.014763]
[1771648211681,0.014762,67765.0,67761.0,0.014763]
[1771648212482,0.014762,67765.0,67761.0,0.01458907]
[1771648212790,0.014762,67765.0,67761.0,0.014763]
[1771648215289,0.014762,67765.0,67758.0,0.014764]
[1771648216393,0.014763,67763.0,67758.0,0.014764]
[1771648216789,0.014763,67764.0,67759.0,0.014764]
[1771648217305,0.029526,67764.0,67759.0,0.014764]
[1771648218406,0.014763,67763.0,67759.0,0.014764]
[1771648219309,0.014763,67763.0,67758.0,0.014764]
[1771648219608,0.014763,67762.0,67758.0,0.014764]
[1771648220003,0.014763,67762.0,67757.0,0.014764]
[1771648220403,0.014763,67763.0,67757.0,0.014764]
[1771648220404,0.014763,67761.0,67757.0,0.014764]
[1771648220610,0.014763,67761.0,67756.0,0.014764]
[1771648220808,0.014763,67762.0,67757.0,0.014764]
[1771648221002,0.014762,67766.0,67758.0,0.014764]
[1771648221208,0.014763,67764.0,67758.0,0.014764]
[1771648221508,0.014763,67764.0,67757.0,0.014764]
[1771648221509,0.014763,67763.0,67757.0,0.014764]
[1771648222410,0.014763,67762.0,67756.0,0.014764]
[1771648224612,0.014763,67763.0,67756.0,0.014764]
[1771648224912,0.014763,67762.0,67756.0,0.014764]
[1771648226310,0.014763,67763.0,67756.0,0.014764]
[1771648227309,0.014763,67763.0,67758.0,0.014764]
[1771648227612,0.014763,67764.0,67758.0,0.014764]
[1771648228915,0.014763,67764.0,67756.0,0.014764]
[1771648229213,0.014763,67764.0,67758.0,0.014764]
[1771648229414,0.014762,67766.0,67760.0,0.014763]
[1771648229608,0.20619058,67765.0,67760.0,0.014763]
[1771648229808,0.029524,67766.0,67760.0,0.014763]
[1771648230106,0.20619065,67765.0,67760.0,0.014763]
[1771648230305,0.014762,67766.0,67760.0,0.029526]
[1771648230501,0.20619084,67765.0,67760.0,0.014763]
[1771648230702,0.20619084,67764.0,67760.0,0.014763]
[1771648230912,0.20619084,67763.0,67760.0,0.014763]
[1771648231212,0.20619084,67762.0,67760.0,0.014763]
[1771648231406,0.014762,67765.0,67760.0,0.014763]
[1771648231609,0.20619101,67764.0,67760.0,0.014763]
[1771648231809,0.20619101,67763.0,67760.0,0.014763]
[1771648232109,0.20619101,67762.0,67760.0,0.014763]
[1771648232310,0.014762,67765.0,67760.0,0.014763]
[1771648232510,0.20619109,67764.0,67760.0,0.014763]
[1771648232712,0.20619109,67763.0,67760.0,0.014763]
[1771648232911,0.20619109,67762.0,67760.0,0.014763]
[1771648233112,0.014762,67765.0,67760.0,0.014763]
[1771648233314,0.22095417,67764.0,67758.0,0.014764]
[1771648233515,0.20619117,67763.0,67758.0,0.014764]
[1771648236318,0.20619117,67763.0,67759.0,0.014764]
[1771648236519,0.20619117,67762.0,67759.0,0.014764]
[1771648236718,0.014762,67765.0,67759.0,0.014764]
[1771648236921,0.20619182,67764.0,67759.0,0.014764]
[1771648237219,0.20619182,67763.0,67759.0,0.014764]
[1771648237421,0.20619182,67762.0,67759.0,0.014764]
[1771648237617,0.014762,67765.0,67759.0,0.014764]
[1771648237916,0.20619183,67764.0,67759.0,0.014764]
[1771648238116,0.20619183,67763.0,67759.0,0.014764]
[1771648238317,0.20619183,67762.0,67759.0,0.014764]
[1771648238506,0.014762,67765.0,67759.0,0.014764]
[1771648238712,0.20619198,67764.0,67759.0,0.014764]
[1771648238911,0.20619198,67763.0,67759.0,0.014764]
[1771648239220,0.20619198,67762.0,67759.0,0.014764]
[1771648239422,0.014762,67765.0,67759.0,0.014764]
[1771648239618,0.20619236,67764.0,67759.0,0.014764]
[1771648239920,0.20619236,67763.0,67759.0,0.014764]
[1771648240121,0.20619236,67762.0,67759.0,0.014764]
[1771648240320,0.014762,67765.0,67759.0,0.014764]
[1771648241321,0.014762,67765.0,67760.0,0.014763]
[1771648242815,0.014762,67767.0,67762.0,0.014763]
[1771648243011,0.2061927,67766.0,67762.0,0.014763]
[1771648243213,0.2061927,67765.0,67762.0,0.014763]
[1771648243414,0.014762,67766.0,67761.0,0.014763]
[1771648243611,0.22095455,67765.0,67761.0,0.014763]
[1771648243816,0.014762,67765.0,67761.0,0.014763]
[1771648246220,0.014762,67765.0,67759.0,0.014764]
[1771648246718,0.014762,67765.0,67758.0,0.014764]
[1771648247219,0.014763,67763.0,67758.0,0.014764]
[1771648249226,0.029526,67763.0,67758.0,0.014764]
[1771648251229,0.014763,67763.0,67758.0,0.014764]
[1771648251729,0.029526,67763.0,67758.0,0.014764]
[1771648252429,0.014763,67762.0,67758.0,0.014764]
[1771648253831,0.014763,67762.0,67757.0,0.014764]
[1771648257226,0.014763,67761.0,67755.0,0.014764]
[1771648257426,0.014763,67763.0,67755.0,0.014764]
[1771648258535,0.014763,67762.0,67757.0,0.014764]
[1771648263245,0.014763,67763.0,67757.0,0.029528]
[1771648263838,0.014763,67763.0,67758.0,0.014764]
[1771648267149,0.014764,67759.0,67745.0,0.014766]
[1771648267443,0.014765,67753.0,67747.0,0.014766]
[1771648267644,0.22029588,67758.0,67747.0,0.0128255]
[1771648267645,0.014765,67752.0,67747.0,0.0128255]
[1771648267844,0.014765,67752.0,67745.0,0.014767]
[1771648268046,0.014766,67751.0,67745.0,0.014767]
[1771648268346,0.014766,67750.0,67742.0,0.014767]
[1771648268545,0.014766,67750.0,67743.0,0.014767]
[1771648268932,0.029532,67750.0,67743.0,0.014767]
[1771648269133,0.014766,67749.0,67743.0,0.014767]
[1771648269337,0.10913155,67756.0,67730.0,0.44293685]
[1771648269545,0.10913155,67754.0,67734.0,0.014769]
[1771648269745,0.014767,67743.0,67735.0,0.014769]
[1771648270145,0.014767,67743.0,67731.0,0.01477]
[1771648270146,0.014767,67742.0,67734.0,0.014769]
[1771648270450,0.014768,67740.0,67734.0,0.014769]
[1771648270651,0.014767,67743.0,67736.0,0.014768]
[1771648271345,0.014767,67745.0,67736.0,0.014768]
[1771648271346,0.014767,67742.0,67736.0,0.014768]
[1771648273253,0.014767,67744.0,67737.0,0.014768]
[1771648273653,0.014767,67744.0,67738.0,0.014768]
[1771648275553,0.014766,67750.0,67743.0,0.014767]
[1771648275758,0.014766,67749.0,67743.0,0.014767]
[1771648276055,0.014766,67748.0,67742.0,0.014767]
[1771648276554,0.014766,67748.0,67741.0,0.014767]
[1771648276750,0.014766,67747.0,67741.0,0.014767]
[1771648277257,0.014766,67747.0,67739.0,0.014768]
[1771648278254,0.014766,67746.0,67739.0,0.014768]
[1771648278455,0.014766,67746.0,67740.0,0.014768]
[1771648279156,0.014766,67747.0,67740.0,0.014768]
[1771648279449,0.014766,67748.0,67740.0,0.014768]
[1771648279657,0.014766,67747.0,67740.0,0.014768]
[1771648280259,0.014766,67746.0,67740.0,0.014768]
[1771648281060,0.014766,67746.0,67740.0,0.015648]
[1771648281254,0.014766,67746.0,67740.0,0.014768]
[1771648282758,0.014765,67751.0,67741.0,0.014767]
[1771648283058,0.014766,67747.0,67741.0,0.014767]
[1771648283861,0.014766,67748.0,67742.0,0.014767]
[1771648284058,0.014766,67747.0,67740.0,0.014768]
[1771648284857,0.014766,67749.0,67741.0,0.014767]
[1771648285060,0.014766,67749.0,67742.0,0.014767]
[1771648285251,0.014766,67747.0,67741.0,0.014767]
[1771648286060,0.014766,67748.0,67741.0,0.014767]
[1771648286262,0.014766,67746.0,67740.0,0.014768]
[1771648287053,0.014766,67746.0,67740.0,0.015568]
[1771648287356,0.014766,67746.0,67740.0,0.014768]
[1771648290066,0.014766,67746.0,67740.0,0.015608]
[1771648290259,0.014766,67746.0,67740.0,0.014768]
[1771648291562,0.029533,67746.0,67739.0,0.014768]
[1771648291765,0.014766,67746.0,67739.0,0.014768]
[1771648292160,0.014768,67741.0,67734.0,0.029538]
[1771648292358,0.014768,67741.0,67734.0,0.014769]
[1771648292773,0.014768,67741.0,67734.0,0.029538]
[1771648293359,0.014768,67741.0,67735.0,0.014769]
[1771648294369,0.014767,67742.0,67735.0,0.014769]
[1771648297372,0.014767,67743.0,67736.0,0.014768]
[1771648299075,0.014767,67743.0,67737.0,0.00088]
[1771648299276,0.014767,67743.0,67736.0,0.014768]
[1771648301275,0.014767,67743.0,67737.0,0.014768]
[1771648303978,0.014767,67743.0,67736.0,0.014769]
[1771648307080,0.014767,67745.0,67736.0,0.014769]
[1771648307081,0.014766,67747.0,67736.0,0.014769]
[1771648307283,0.014767,67744.0,67737.0,0.014768]
[1771648307486,0.014767,67746.0,67737.0,0.014768]
[1771648307972,0.014767,67745.0,67738.0,0.014768]
[1771648319697,0.014767,67745.0,67739.0,0.014768]
[1771648320497,0.014767,67745.0,67738.0,0.014768]
[1771648321201,0.014766,67750.0,67743.0,0.014767]
[1771648321410,0.10016349,67749.0,67743.0,0.014767]
[1771648321709,0.029532,67750.0,67743.0,0.014767]
[1771648322005,0.014766,67749.0,67742.0,0.014767]
[1771648323493,0.014766,67749.0,67743.0,0.014767]
[1771648325900,0.014766,67749.0,67744.0,0.014767]
[1771648327395,0.014766,67749.0,67742.0,0.014767]
[1771648327396,0.014766,67748.0,67743.0,0.014767]
[1771648327595,0.014766,67751.0,67745.0,0.014767]
[1771648327798,0.014766,67747.0,67742.0,0.014767]
[1771648327998,0.014766,67749.0,67743.0,0.014767]
[1771648328399,0.014766,67748.0,67740.0,0.014768]
[1771648328801,0.014766,67747.0,67741.0,0.014767]
[1771648329002,0.014766,67748.0,67741.0,0.014767]
[1771648329300,0.014766,67748.0,67740.0,0.014768]
[1771648329498,0.014766,67747.0,67739.0,0.014768]
[1771648330303,0.014766,67747.0,67740.0,0.014768]
[1771648333303,0.029532,67750.0,67740.0,0.014768]
[1771648334306,0.014766,67749.0,67741.0,0.014767]
[1771648335005,0.014766,67749.0,67742.0,0.014767]
[1771648335303,0.014766,67750.0,67742.0,0.014767]
[1771648336405,0.014766,67750.0,67743.0,0.014767]
[1771648340415,0.014766,67750.0,67744.0,0.014767]
[1771648347521,0.014766,67749.0,67743.0,0.014767]
[1771648353322,0.029531,67751.0,67743.0,0.014767]
[1771648354719,0.014766,67750.0,67743.0,0.014767]
[1771648355119,0.014766,67750.0,67741.0,0.014767]
[1771648356524,0.014766,67750.0,67743.0,0.014767]
[1771648362133,0.029531,67751.0,67744.0,0.014767]
[1771648362627,0.014766,67750.0,67743.0,0.014767]
[1771648366431,0.014766,67750.0,67744.0,0.014767]
[1771648372038,0.014765,67751.0,67744.0,0.014767]
[1771648372239,0.17059716,67750.0,67744.0,0.014767]
[1771648372439,0.014765,67751.0,67744.0,0.014767]
[1771648374133,0.014765,67752.0,67745.0,0.014766]
[1771648375641,0.014765,67752.0,67746.0,0.014766]
[1771648381343,0.014765,67751.0,67745.0,0.014767]
[1771648383449,0.014765,67751.0,67744.0,0.014767]
[1771648384549,0.029531,67751.0,67744.0,0.014767]
[1771648384755,0.014765,67751.0,67744.0,0.014767]
[1771648384951,0.014763,67760.0,67751.0,0.014765]
[1771648385151,0.20190353,67759.0,67753.0,0.014765]
[1771648385356,0.014764,67760.0,67753.0,0.014765]
[1771648385649,0.014764,67759.0,67753.0,0.014765]
[1771648386052,0.014763,67760.0,67753.0,0.014765]
[1771648387248,0.014763,67762.0,67755.0,0.014764]
[1771648387457,0.014763,67763.0,67756.0,0.014764]
[1771648387755,0.029526,67762.0,67755.0,0.014764]
[1771648388154,0.014763,67761.0,67755.0,0.014764]
[1771648389056,0.014763,67762.0,67756.0,0.014764]
[1771648389257,0.014763,67763.0,67756.0,0.014764]
[1771648389661,0.014763,67763.0,67755.0,0.014764]
[1771648389662,0.014762,67765.0,67758.0,0.014764]
[1771648389858,0.014762,67766.0,67759.0,0.014764]
[1771648390060,0.014762,67767.0,67760.0,0.014763]
[1771648390362,0.014762,67767.0,67762.0,0.014763]
[1771648391254,0.014762,67767.0,67761.0,0.014763]
[1771648391963,0.014762,67768.0,67762.0,0.014763]
[1771648392163,0.014762,67767.0,67762.0,0.014763]
[1771648392463,0.014762,67767.0,67758.0,0.014764]
[1771648392464,0.014762,67767.0,67760.0,0.014763]
[1771648392657,0.014763,67764.0,67759.0,0.014764]
[1771648392963,0.014763,67764.0,67758.0,0.014764]
[1771648394258,0.014763,67762.0,67756.0,0.014764]
[1771648394460,0.029526,67762.0,67756.0,0.014764]
[1771648396158,0.014763,67761.0,67756.0,0.014764]
[1771648396760,0.014763,67761.0,67755.0,0.014764]
[1771648399159,0.014763,67761.0,67754.0,0.014765]
[1771648399359,0.014763,67761.0,67754.0,0.02953]
[1771648399663,0.014763,67761.0,67754.0,0.014765]
[1771648400262,0.014763,67761.0,67754.0,0.029529]
[1771648400755,0.014762,67765.0,67757.0,0.014764]
[1771648400957,0.014763,67764.0,67757.0,0.014764]
[1771648401267,0.014763,67763.0,67757.0,0.014764]
[1771648404566,0.029526,67763.0,67757.0,0.014764]
[1771648405465,0.014763,67763.0,67757.0,0.014764]
[1771648405669,0.029526,67763.0,67757.0,0.014764]
[1771648406271,0.014763,67763.0,67757.0,0.014764]
[1771648407368,0.014763,67762.0,67757.0,0.014764]
[1771648407974,0.014763,67762.0,67756.0,0.014764]
[1771648413273,0.014762,67768.0,67759.0,0.014763]
[1771648413468,0.014762,67766.0,67759.0,0.014763]
[1771648414169,0.014762,67765.0,67759.0,0.014763]
[1771648415780,0.014762,67766.0,67759.0,0.014763]
[1771648416279,0.014762,67766.0,67758.0,0.014764]
[1771648416481,0.014762,67766.0,67759.0,0.014763]
[1771648416482,0.029524,67766.0,67759.0,0.014763]
[1771648416871,0.014762,67766.0,67759.0,0.014763]
[1771648417381,0.014762,67767.0,67760.0,0.014763]
[1771648418380,0.014762,67767.0,67761.0,0.014763]
[1771648419074,0.014762,67767.0,67761.0,0.015643]
[1771648419375,0.014762,67767.0,67761.0,0.014763]
[1771648420083,0.014762,67767.0,67762.0,0.014763]
[1771648420769,0.014761,67770.0,67761.0,0.014763]
[1771648420981,0.014762,67768.0,67762.0,0.014763]
[1771648423294,0.014762,67767.0,67762.0,0.014763]
[1771648424982,0.014762,67767.0,67761.0,0.014763]
[1771648425384,0.014762,67767.0,67760.0,0.014763]
[1771648426485,0.014762,67766.0,67760.0,0.014763]
[1771648428789,0.014763,67764.0,67757.0,0.19325261]
[1771648429086,0.014763,67763.0,67757.0,0.20801661]
[1771648430991,0.014763,67763.0,67757.0,0.22278061]
[1771648431191,0.014763,67764.0,67758.0,0.014764]
[1771648431389,0.014762,67766.0,67760.0,0.014763]
[1771648431588,0.014762,67765.0,67760.0,0.014763]
[1771648432489,0.014762,67766.0,67760.0,0.014763]
[1771648433685,0.014762,67766.0,67762.0,0.014763]
[1771648434188,0.014761,67770.0,67762.0,0.014763]
[1771648434484,0.014761,67772.0,67766.0,0.014762]
[1771648434889,0.014761,67772.0,67767.0,0.014762]
[1771648435288,0.014761,67773.0,67768.0,0.014761]
[1771648435492,0.014761,67772.0,67766.0,0.014762]
[1771648437292,0.014761,67772.0,67767.0,0.014762]
[1771648438086,0.014761,67773.0,67768.0,0.014762]
[1771648438688,0.01476,67774.0,67767.0,0.014762]
[1771648438889,0.014761,67772.0,67767.0,0.014762]
[1771648440592,0.014761,67773.0,67768.0,0.014762]
[1771648441394,0.014761,67772.0,67768.0,0.014762]
[1771648441594,0.01476,67777.0,67769.0,0.014761]
[1771648441595,0.01476,67774.0,67769.0,0.014761]
[1771648441794,0.014761,67772.0,67767.0,0.014762]
[1771648441995,0.014761,67771.0,67767.0,0.014762]
[1771648442292,0.01476,67776.0,67771.0,0.014761]
[1771648442596,0.01476,67775.0,67769.0,0.014761]
[1771648442796,0.01476,67776.0,67769.0,0.014761]
[1771648443297,0.01476,67776.0,67767.0,0.014762]
[1771648443298,0.014761,67773.0,67768.0,0.014762]
[1771648444193,0.01476,67774.0,67768.0,0.014762]
[1771648444495,0.014761,67773.0,67767.0,0.014762]
[1771648445092,0.014761,67773.0,67766.0,0.19111421]
[1771648445293,0.014761,67772.0,67766.0,0.014762]
[1771648445595,0.014761,67772.0,67765.0,0.19111421]
[1771648445784,0.014761,67773.0,67767.0,0.014762]
[1771648446696,0.01476,67774.0,67768.0,0.014762]
[1771648447188,0.01476,67774.0,67767.0,0.014762]
[1771648447395,0.01476,67774.0,67768.0,0.014762]
[1771648449399,0.02952,67776.0,67768.0,0.014762]
[1771648450400,0.01476,67776.0,67769.0,0.014761]
[1771648450901,0.01476,67776.0,67770.0,0.014761]
[1771648451893,0.02952,67776.0,67770.0,0.014761]
[1771648452201,0.01476,67776.0,67770.0,0.014761]
[1771648452502,0.01476,67776.0,67770.0,0.029522]
[1771648452702,0.01476,67776.0,67770.0,0.014761]
[1771648452901,0.01476,67776.0,67771.0,0.014761]
[1771648453101,0.01476,67777.0,67772.0,0.014761]
[1771648454703,0.01476,67777.0,67773.0,0.014761]
[1771648455405,0.01476,67777.0,67770.0,0.014761]
[1771648456200,0.01476,67776.0,67770.0,0.014761]
[1771648456406,0.01476,67775.0,67770.0,0.014761]
[1771648460107,0.01476,67775.0,67769.0,0.014761]
[1771648460308,0.01476,67775.0,67768.0,0.014762]
[1771648460507,0.01476,67777.0,67768.0,0.029523]
[1771648460708,0.01476,67776.0,67768.0,0.014761]
[1771648461510,0.01476,67774.0,67768.0,0.014761]
[1771648462606,0.00073767,67781.0,67775.0,0.01476]
[1771648462910,0.014758,67784.0,67775.0,0.19711677]
[1771648463113,0.014758,67784.0,67777.0,0.01476]
[1771648463309,0.014758,67784.0,67778.0,0.014759]
[1771648464500,0.014758,67784.0,67777.0,0.01476]
[1771648465410,0.014758,67786.0,67779.0,0.029518]
[1771648466409,0.014758,67786.0,67780.0,0.014759]
[1771648466712,0.014758,67787.0,67780.0,0.014759]
[1771648467109,0.014758,67787.0,67781.0,0.014759]
[1771648467306,0.014759,67780.0,67775.0,0.14046027]
[1771648467505,0.014759,67780.0,67773.0,0.01476]
[1771648467704,0.014759,67781.0,67774.0,0.01476]
[1771648469714,0.014759,67780.0,67774.0,0.01476]
[1771648470516,0.014759,67781.0,67773.0,0.01476]
[1771648470713,0.01476,67776.0,67769.0,0.014761]
[1771648474521,0.01476,67776.0,67769.0,0.029522]
[1771648475318,0.01476,67776.0,67769.0,0.014761]
[1771648477522,0.01476,67776.0,67769.0,0.029522]
[1771648478620,0.01476,67776.0,67769.0,0.014761]
[1771648479419,0.01476,67776.0,67769.0,0.029522]
[1771648481118,0.01476,67776.0,67770.0,0.014761]
[1771648481320,0.01476,67774.0,67768.0,0.014762]
[1771648481521,0.01476,67775.0,67769.0,0.014761]
[1771648482221,0.01476,67776.0,67770.0,0.014761]
[1771648482724,0.01476,67777.0,67771.0,0.014761]
[1771648485425,0.01476,67777.0,67770.0,0.014761]
[1771648486423,0.01476,67776.0,67770.0,0.014761]
[1771648486618,0.05,67770.0,67769.0,0.014761]
[1771648487426,0.01476,67776.0,67770.0,0.014761]
[1771648488934,0.01476,67776.0,67768.0,0.014762]
[1771648488935,0.014759,67779.0,67763.0,0.014763]
[1771648489124,0.014761,67770.0,67763.0,0.014763]
[1771648489525,0.014761,67769.0,67763.0,0.014763]
[1771648490222,0.014761,67770.0,67763.0,0.014763]
[1771648490534,0.014761,67769.0,67763.0,0.014763]
[1771648491731,0.014762,67765.0,67759.0,0.014764]
[1771648491919,0.029524,67765.0,67758.0,0.014764]
[1771648492123,0.014762,67767.0,67758.0,0.014764]
[1771648493036,0.014762,67768.0,67760.0,0.014763]
[1771648493225,0.014761,67769.0,67761.0,0.014763]
[1771648495223,0.014761,67769.0,67762.0,0.014763]
[1771648495827,0.014763,67764.0,67754.0,0.014765]
[1771648496032,0.014763,67763.0,67756.0,0.014764]
[1771648497037,0.014763,67763.0,67757.0,0.0008]
[1771648497242,0.014763,67763.0,67756.0,0.014764]
[1771648498736,0.014765,67751.0,67741.0,0.33054519]
[1771648498937,0.014765,67752.0,67745.0,0.014766]
[1771648499742,0.014765,67752.0,67743.0,0.014767]
[1771648499932,0.014765,67752.0,67745.0,0.014767]
[1771648500133,0.014764,67759.0,67746.0,0.014766]
[1771648500335,0.06854732,67780.0,67750.0,0.17543326]
[1771648500534,0.014761,67773.0,67766.0,0.014762]
[1771648500944,0.029522,67773.0,67767.0,0.014762]
[1771648501143,0.014761,67772.0,67767.0,0.014762]
[1771648501343,0.014761,67771.0,67765.0,0.014762]
[1771648501542,0.014761,67771.0,67766.0,0.014762]
[1771648501845,0.014761,67772.0,67767.0,0.014762]
[1771648502046,0.01476,67775.0,67766.0,0.014762]
[1771648502646,0.014761,67771.0,67766.0,0.014762]
[1771648503537,0.014761,67771.0,67766.0,0.029524]
[1771648503738,0.014761,67772.0,67767.0,0.014762]
[1771648505646,0.014761,67772.0,67766.0,0.014762]
[1771648505850,0.014761,67772.0,67766.0,0.029524]
[1771648506049,0.014761,67774.0,67766.0,0.0008]
[1771648506248,0.014761,67774.0,67769.0,0.014761]
[1771648506448,0.01476,67774.0,67769.0,0.014761]
[1771648506651,0.01476,67776.0,67769.0,0.014761]
[1771648507040,0.014761,67774.0,67769.0,0.014761]
[1771648507744,0.01476,67775.0,67768.0,0.014762]
[1771648507949,0.01476,67775.0,67769.0,0.014761]
[1771648508245,0.01476,67774.0,67768.0,0.014762]
[1771648509143,0.01476,67774.0,67767.0,0.014762]
[1771648509342,0.014761,67773.0,67767.0,0.014762]
[1771648509853,0.014758,67787.0,67772.0,0.014761]
[1771648510150,0.014758,67787.0,67771.0,0.014761]
[1771648510151,0.01476,67778.0,67773.0,0.01476]
[1771648512550,0.01476,67777.0,67772.0,0.014761]
[1771648513249,0.01476,67778.0,67767.0,0.21422958]
[1771648513250,0.01476,67778.0,67773.0,0.014761]
[1771648514752,0.014759,67779.0,67773.0,0.014761]
[1771648516857,0.014759,67778.0,67773.0,0.014761]
[1771648517657,0.014759,67778.0,67772.0,0.014761]
[1771648517955,0.01476,67777.0,67772.0,0.014761]
[1771648518357,0.014759,67780.0,67772.0,0.014761]
[1771648518358,0.01476,67778.0,67772.0,0.014761]
[1771648519152,0.01476,67778.0,67773.0,0.014761]
[1771648520258,0.014759,67780.0,67773.0,0.014761]
[1771648520559,0.014759,67780.0,67772.0,0.014761]
[1771648520958,0.014759,67779.0,67774.0,0.01476]
[1771648521359,0.014759,67779.0,67773.0,0.01476]
[1771648521558,0.014759,67778.0,67773.0,0.01476]
[1771648522754,0.014759,67778.0,67772.0,0.014761]
[1771648527259,0.014758,67786.0,67772.0,0.21422858]
[1771648527461,0.20622516,67785.0,67772.0,0.21422858]
[1771648527760,0.014758,67786.0,67772.0,0.21422858]
[1771648528057,0.20622516,67785.0,67772.0,0.21422858]
[1771648528257,0.014758,67786.0,67772.0,0.21422858]
[1771648528258,0.014759,67778.0,67772.0,0.21422858]
[1771648529960,0.014759,67783.0,67777.0,0.014759]
[1771648530256,0.014757,67788.0,67777.0,0.014759]
[1771648530457,0.029516,67785.0,67779.0,0.014759]
[1771648530657,0.22120021,67784.0,67778.0,0.014759]
[1771648530858,0.20644221,67783.0,67778.0,0.014759]
[1771648531058,0.014758,67787.0,67781.0,0.014759]
[1771648531259,0.014758,67786.0,67780.0,0.014759]
[1771648531865,0.014758,67787.0,67781.0,0.014759]
[1771648532066,0.014758,67786.0,67780.0,0.014759]
[1771648532362,0.014758,67786.0,67779.0,0.014759]
[1771648532569,0.014758,67787.0,67781.0,0.014759]
[1771648533068,0.029516,67787.0,67781.0,0.015559]
[1771648533265,0.029516,67787.0,67781.0,0.014759]
[1771648533568,0.014758,67786.0,67780.0,0.014759]
[1771648533972,0.014758,67787.0,67781.0,0.014759]
[1771648534270,0.014758,67786.0,67781.0,0.014759]
[1771648535171,0.014758,67786.0,67780.0,0.014759]
[1771648535670,0.014758,67786.0,67781.0,0.014759]
[1771648536967,0.014757,67790.0,67781.0,0.014759]
[1771648537271,0.029514,67790.0,67784.0,0.014758]
[1771648537470,0.014757,67790.0,67784.0,0.014758]
[1771648537671,0.014757,67789.0,67784.0,0.014758]
[1771648538372,0.014757,67790.0,67784.0,0.014758]
[1771648539773,0.014757,67788.0,67781.0,0.014759]
[1771648539973,0.029514,67790.0,67781.0,0.014759]
[1771648540177,0.014757,67789.0,67783.0,0.014758]
[1771648540365,0.014757,67789.0,67782.0,0.014759]
[1771648541476,0.014756,67793.0,67786.0,0.014758]
[1771648541677,0.029512,67793.0,67785.0,0.014758]
[1771648543077,0.08706349,67804.0,67783.0,0.014758]
[1771648543078,0.014754,67805.0,67790.0,0.18885498]
[1771648543270,0.014754,67802.0,67790.0,0.18885498]
[1771648543469,0.014754,67802.0,67794.0,0.014756]
[1771648543975,0.014754,67803.0,67794.0,0.014756]
[1771648543976,0.014755,67801.0,67794.0,0.014756]
[1771648544175,0.18129522,67810.0,67796.0,0.014755]
[1771648544366,0.014754,67803.0,67796.0,0.014755]
[1771648544776,0.014754,67803.0,67797.0,0.014755]
[1771648544975,0.014754,67804.0,67797.0,0.014755]
[1771648545176,0.014754,67804.0,67797.0,0.02951]
[1771648545568,0.014754,67804.0,67798.0,0.014755]
[1771648546980,0.014754,67804.0,67797.0,0.014755]
[1771648546981,0.014753,67806.0,67801.0,0.014754]
[1771648547278,0.14587744,67824.0,67799.0,0.014755]
[1771648547279,0.014753,67807.0,67802.0,0.014754]
[1771648547476,0.014753,67809.0,67803.0,0.014754]
[1771648547678,0.014753,67808.0,67803.0,0.014754]
[1771648548484,0.014754,67805.0,67794.0,0.014756]
[1771648548674,0.014754,67804.0,67797.0,0.014755]
[1771648549174,0.014753,67807.0,67794.0,0.014756]
[1771648549175,0.014754,67802.0,67794.0,0.014756]
[1771648549778,0.014753,67807.0,67793.0,0.014756]
[1771648549779,0.014753,67806.0,67793.0,0.014756]
[1771648550082,0.014755,67800.0,67793.0,0.014756]
[1771648550278,0.014755,67801.0,67793.0,0.014756]
[1771648550279,0.014755,67799.0,67793.0,0.014756]
[1771648553973,0.014755,67800.0,67793.0,0.014756]
[1771648554584,0.014755,67800.0,67794.0,0.014756]
[1771648558482,0.014754,67802.0,67794.0,0.014756]
[1771648559389,0.014754,67802.0,67795.0,0.014756]
[1771648559589,0.014754,67802.0,67794.0,0.014756]
[1771648559791,0.014754,67802.0,67795.0,0.014756]
[1771648561292,0.029508,67802.0,67795.0,0.014756]
[1771648561691,0.014754,67801.0,67795.0,0.014756]
[1771648562393,0.014754,67804.0,67797.0,0.014755]
[1771648562594,0.014754,67805.0,67798.0,0.014755]
[1771648562781,0.014753,67806.0,67799.0,0.014755]
[1771648564798,0.014754,67805.0,67798.0,0.014755]
[1771648565500,0.014754,67805.0,67798.0,0.02951]
[1771648567006,0.014754,67805.0,67799.0,0.014755]
[1771648567508,0.014753,67806.0,67799.0,0.014755]
[1771648570409,0.014754,67805.0,67798.0,0.014755]
[1771648574103,0.014754,67805.0,67799.0,0.014755]
[1771648575517,0.05806394,67820.0,67800.0,0.014755]
[1771648575717,0.20104077,67817.0,67803.0,0.014754]
[1771648575921,0.014753,67810.0,67804.0,0.014754]
[1771648576118,0.20104077,67809.0,67804.0,0.014754]
[1771648576416,0.20104077,67808.0,67804.0,0.014754]
[1771648576716,0.014753,67809.0,67803.0,0.014754]
[1771648576921,0.20104149,67808.0,67803.0,0.014754]
[1771648577113,0.014753,67810.0,67804.0,0.014754]
[1771648577314,0.20104401,67809.0,67804.0,0.014754]
[1771648577514,0.20104401,67808.0,67803.0,0.014754]
[1771648577714,0.014753,67810.0,67804.0,0.014754]
[1771648577915,0.20104181,67809.0,67804.0,0.014754]
[1771648578218,0.014753,67810.0,67804.0,0.014754]
[1771648578415,0.20104316,67809.0,67804.0,0.014754]
[1771648578720,0.20104316,67808.0,67804.0,0.014754]
[1771648579017,0.014753,67809.0,67804.0,0.014754]